bitfinex/quotes_SOLUSD_20220117
["timestamp","ask_amount","ask_price","bid_price","bid_amount"]
[1642425724039,10.17,142.8,142.74,24.7059]
[1642425724229,17.196,142.8,142.74,24.7059]
[1642425725631,20.6789,142.8,142.74,24.7059]
[1642425726431,20.6789,142.8,142.7,23.7408]
[1642425728534,90.9689,142.8,142.7,23.7408]
[1642425728834,20.6789,142.8,142.7,23.7408]
[1642425729537,20.6789,142.8,142.69,68.48140851]
[1642425730135,44.1856,142.8,142.69,68.48140851]
[1642425730537,44.1856,142.8,142.69,23.0667]
[1642425730737,1.73904425,142.79,142.67,2.6071863]
[1642425730939,10.5133,142.76,142.67,2.6071863]
[1642425731141,10.17,142.75,142.67,2.6071863]
[1642425731339,11.90904425,142.75,142.67,2.6071863]
[1642425731537,10.17,142.75,142.68,35.14988823]
[1642425732039,10.5088,142.8,142.69,0.25]
[1642425732338,10.5088,142.8,142.69,22.8816]
[1642425732740,10.5088,142.8,142.69,28.8816]
[1642425733238,10.5088,142.8,142.69,99.1716]
[1642425733439,12.48362171,142.8,142.69,99.1716]
[1642425733639,12.48362171,142.8,142.69,109.6799]
[1642425734140,10.5088,142.8,142.69,103.9399]
[1642425736544,10.5088,142.8,142.69,103.6799]
[1642425736743,20.6788,142.8,142.69,103.6799]
[1642425737748,20.6788,142.8,142.69,33.3899]
[1642425738948,44.2058,142.8,142.69,33.3899]
[1642425739349,114.4958,142.8,142.69,22.6316]
[1642425739749,44.2058,142.8,142.69,22.6316]
[1642425744282,46.18062171,142.8,142.69,22.6316]
[1642425744683,47.91966596,142.8,142.69,22.6316]
[1642425745282,45.94484425,142.8,142.69,22.6316]
[1642425745685,116.23484425,142.8,142.69,22.6316]
[1642425746182,47.91966596,142.8,142.69,22.6316]
[1642425748484,22.65362171,142.8,142.7,0.25]
[1642425748684,12.14482171,142.8,142.7,0.25]
[1642425749585,12.14482171,142.8,142.7,10.7578]
[1642425749788,12.14482171,142.8,142.7,87.3078]
[1642425749986,10.17,142.8,142.7,17.0178]
[1642425750187,10.17,142.8,142.71,24.4291]
[1642425750387,10.17,142.8,142.72,0.25]
[1642425751990,10.17,142.8,142.71,24.4291]
[1642425752587,11.90904425,142.8,142.71,24.4291]
[1642425752988,22.41774425,142.8,142.71,24.4291]
[1642425753189,1.97482171,142.79,142.71,24.4291]
[1642425753389,12.14482171,142.79,142.71,24.4291]
[1642425754491,10.5102,142.78,142.71,24.4291]
[1642425755797,19.2262,142.78,142.71,24.4291]
[1642425756099,10.17,142.77,142.71,24.4291]
[1642425756296,20.681,142.77,142.71,24.4291]
[1642425756907,49.02405375,142.76,142.71,24.4291]
[1642425757096,49.02405375,142.76,142.67,14.8992932]
[1642425757301,10.17,142.75,142.67,27.9945932]
[1642425757501,18.57,142.75,142.67,27.9945932]
[1642425757697,20.30904425,142.75,142.67,27.9945932]
[1642425757898,20.30904425,142.75,142.67,26.2126863]
[1642425758500,10.5131,142.74,142.67,26.2126863]
[1642425759100,10.17,142.75,142.67,26.2126863]
[1642425759301,10.17,142.75,142.67,96.5026863]
[1642425759501,10.17,142.75,142.67,26.2126863]
[1642425759900,10.17,142.75,142.68,0.25]
[1642425765547,10.17,142.75,142.67,33.9945932]
[1642425765739,16.754,142.75,142.67,27.9945932]
[1642425766542,16.754,142.75,142.68,39.70932349]
[1642425767046,20.6824,142.75,142.68,39.70932349]
[1642425767245,10.5124,142.75,142.68,39.70932349]
[1642425767844,10.5124,142.75,142.68,45.70932349]
[1642425768244,10.5107,142.77,142.69,0.25]
[1642425768444,10.5107,142.77,142.69,24.5287]
[1642425768847,10.5107,142.77,142.69,30.5287]
[1642425770552,10.5107,142.77,142.69,24.5287]
[1642425770747,52.68697426,142.77,142.69,24.5287]
[1642425774254,42.17627426,142.77,142.69,24.5287]
[1642425774451,42.17627426,142.77,142.69,24.2787]
[1642425775652,52.68707426,142.77,142.69,24.2787]
[1642425776453,12.14482171,142.78,142.69,24.2787]
[1642425776752,12.14482171,142.78,142.69,34.7877]
[1642425777053,10.17,142.78,142.69,34.7877]
[1642425777252,10.17,142.78,142.7,0.25]
[1642425777454,1.97482171,142.79,142.7,0.25]
[1642425778254,1.97482171,142.81,142.7,0.25]
[1642425778455,1.97482171,142.81,142.7,10.42]
[1642425778658,1.97482171,142.81,142.71,35.3663]
[1642425778854,1.97482171,142.81,142.72,0.25]
[1642425780559,1.97482171,142.81,142.73,10.5059]
[1642425780755,1.97482171,142.81,142.74,24.3386]
[1642425782155,1.97482171,142.81,142.74,34.8439]
[1642425783061,1.97482171,142.81,142.74,24.3386]
[1642425783263,10.17,142.8,142.7,25.2511069]
[1642425783460,10.17,142.8,142.71,22.8322]
[1642425783862,10.17,142.8,142.71,62.19000999]
[1642425784361,12.14482171,142.8,142.71,62.19000999]
[1642425785062,13.88386596,142.8,142.71,62.19000999]
[1642425785462,12.14482171,142.8,142.71,62.19000999]
[1642425785862,12.14482171,142.8,142.71,72.69760999]
[1642425786661,12.14482171,142.8,142.72,0.25]
[1642425787263,12.14482171,142.8,142.72,10.7567]
[1642425787462,12.14482171,142.8,142.72,17.0167]
[1642425787663,12.14482171,142.8,142.73,22.7175]
[1642425787891,12.14482171,142.8,142.74,0.25]
[1642425788090,1.97482171,142.81,142.74,0.25]
[1642425788899,1.97482171,142.83,142.74,0.25]
[1642425789595,12.48162171,142.83,142.74,0.25]
[1642425790495,36.83252171,142.83,142.74,0.25]
[1642425790897,47.00252171,142.83,142.74,0.25]
[1642425791396,47.00252171,142.83,142.77,2.6071863]
[1642425792098,117.29252171,142.83,142.77,2.6071863]
[1642425792297,47.00252171,142.83,142.77,2.6071863]
[1642425793197,1.97482171,142.81,142.77,2.6071863]
[1642425793400,10.5086,142.8,142.77,2.6071863]
[1642425794202,2.94049997,142.79,142.77,2.6071863]
[1642425794405,41.36288087,142.79,142.77,2.6071863]
[1642425801606,2.94049997,142.79,142.77,2.6071863]
[1642425804210,2.94049997,142.79,142.77,5.73108627]
[1642425804408,1.97482171,142.8,142.77,5.73108627]
[1642425805108,38.80222895,142.83,142.77,5.73108627]
[1642425805109,1.97482171,142.82,142.77,5.73108627]
[1642425812415,36.83212171,142.83,142.77,5.73108627]
[1642425812917,12.48122171,142.83,142.77,5.73108627]
[1642425813719,22.65122171,142.83,142.77,2.6071863]
[1642425814217,1.97482171,142.82,142.77,2.6071863]
[1642425814620,10.509,142.81,142.77,2.6071863]
[1642425815618,10.509,142.81,142.73,23.1125863]
[1642425816422,12.48382171,142.81,142.73,23.1125863]
[1642425817621,1.97482171,142.81,142.73,23.1125863]
[1642425818322,1.97482171,142.81,142.73,33.6181863]
[1642425818524,1.97482171,142.82,142.74,0.25]
[1642425819025,1.97482171,142.82,142.73,99.6625863]
[1642425819325,1.97482171,142.82,142.74,0.25]
[1642425819525,1.97482171,142.83,142.74,0.25]
[1642425820625,1.97482171,142.83,142.74,10.7545]
[1642425821425,1.97482171,142.83,142.75,24.47]
[1642425821655,1.97482171,142.83,142.75,105.2641]
[1642425821853,1.97482171,142.83,142.76,0.25]
[1642425822255,1.97482171,142.83,142.76,18.82695593]
[1642425822456,2.171e-05,142.83,142.76,18.82695593]
[1642425822652,2.171e-05,142.83,142.78,10.5021]
[1642425822853,3.94462895,142.87,142.79,143.25]
[1642425823053,3.94462895,142.87,142.79,154.69195593]
[1642425823353,3.94462895,142.87,142.8,70.29]
[1642425823553,47.64908072,142.91,142.8,70.29]
[1642425823754,47.64908072,142.91,142.81,10.7492]
[1642425823957,47.64908072,142.91,142.82,36.80815006]
[1642425824353,47.64908072,142.91,142.83,0.25]
[1642425824757,43.70445177,142.91,142.83,0.25]
[1642425826255,43.70445177,142.91,142.82,36.80815006]
[1642425828257,43.70445177,142.91,142.83,0.25]
[1642425828457,3.94462895,142.93,142.83,9.062]
[1642425828859,3.94462895,142.93,142.83,25.492]
[1642425829061,3.94462895,142.94,142.83,25.492]
[1642425829456,52.51694554,142.94,142.83,35.9902]
[1642425830260,48.57231659,142.94,142.83,35.9902]
[1642425830658,48.57231659,142.94,142.84,70.29]
[1642425830860,48.57231659,142.94,142.85,10.7467]
[1642425831259,48.57231659,142.94,142.85,16.7467]
[1642425832160,14.44162895,142.96,142.85,16.7467]
[1642425832359,3.94462895,142.96,142.86,10.17]
[1642425832559,3.94462895,142.96,142.88,10.4946]
[1642425832763,28.15752895,142.97,142.89,0.25]
[1642425833159,35.0306738,142.96,142.89,0.25]
[1642425833560,35.0306738,142.96,142.88,47.68240451]
[1642425833765,35.0306738,142.96,142.88,10.4946]
[1642425835164,35.0306738,142.96,142.88,16.4946]
[1642425839769,35.0306738,142.96,142.88,6.0]
[1642425839968,35.0306738,142.96,142.86,49.5186]
[1642425840169,35.0306738,142.96,142.86,49.7786]
[1642425840771,35.0306738,142.96,142.86,49.5186]
[1642425840972,35.0306738,142.96,142.87,24.5781]
[1642425841371,35.0306738,142.96,142.87,30.5781]
[1642425841571,35.0306738,142.96,142.87,24.5781]
[1642425841771,10.17,142.95,142.87,24.5781]
[1642425841971,20.6677,142.95,142.86,22.8526]
[1642425845794,20.6677,142.95,142.86,22.8526]
[1642425845992,20.6677,142.95,142.85,23.699]
[1642425847817,22.40674425,142.95,142.85,23.699]
[1642425848017,26.3513732,142.95,142.85,23.699]
[1642425848218,96.6413732,142.95,142.85,23.699]
[1642425849923,7.91620012,142.94,142.85,23.699]
[1642425850125,10.4989,142.93,142.85,23.699]
[1642425854130,14.44352895,142.93,142.85,23.699]
[1642425854829,10.4989,142.93,142.85,23.699]
[1642425855031,20.6689,142.93,142.85,23.699]
[1642425856332,22.40794425,142.93,142.85,23.699]
[1642425857532,1.36881977,142.92,142.85,23.699]
[1642425857732,10.5013,142.9,142.85,23.699]
[1642425863937,36.55284317,142.91,142.85,23.699]
[1642425864937,36.55284317,142.91,142.85,55.6020019]
[1642425865337,5.31344872,142.92,142.85,55.6020019]
[1642425865538,3.94462895,142.92,142.85,55.6020019]
[1642425865738,3.94462895,142.92,142.86,0.25]
[1642425866345,43.26496221,142.94,142.86,0.25]
[1642425866771,43.26496221,142.94,142.85,142.3220019]
[1642425866972,43.26496221,142.94,142.86,0.25]
[1642425867572,39.32033326,142.94,142.86,10.7451]
[1642425867772,3.94462895,142.97,142.86,11.0051]
[1642425867971,3.94462895,142.97,142.87,22.5379]
[1642425868372,3.94462895,142.97,142.88,0.25]
[1642425868572,3.94462895,142.97,142.88,8.977]
[1642425868770,46.92490933,142.96,142.88,14.977]
[1642425869671,46.92490933,142.96,142.89,10.4924]
[1642425870272,46.92490933,142.96,142.89,33.905]
[1642425872675,46.92490933,142.96,142.89,23.4126]
[1642425875879,46.92490933,142.96,142.88,31.25797567]
[1642425876279,3.94462895,142.98,142.88,37.25797567]
[1642425876480,3.94462895,142.98,142.89,23.3976]
[1642425876879,28.6524232,142.99,142.89,23.3976]
[1642425877281,42.65246467,142.98,142.89,23.3976]
[1642425877480,42.74676446,142.98,142.89,23.3976]
[1642425880785,42.74676446,142.98,142.89,29.3976]
[1642425880986,42.74676446,142.98,142.89,23.3976]
[1642425883385,42.74676446,142.98,142.9,0.25]
[1642425883582,42.74676446,142.98,142.89,23.3976]
[1642425883785,42.74676446,142.98,142.9,0.25]
[1642425884184,42.74676446,142.98,142.89,23.3976]
[1642425884986,42.74676446,142.98,142.9,0.25]
[1642425885186,42.74676446,142.98,142.89,23.3976]
[1642425893194,53.24216446,142.98,142.89,23.3976]
[1642425893394,10.17,142.97,142.89,23.3976]
[1642425894499,1.73904425,142.96,142.89,23.3976]
[1642425894700,10.17,142.95,142.89,23.3976]
[1642425894898,36.18960287,142.94,142.89,23.3976]
[1642425898505,0.09429979,142.93,142.89,23.3976]
[1642425901837,0.09429979,142.93,142.85,24.2096]
[1642425902039,0.09429979,142.93,142.86,23.5062]
[1642425912956,0.09429979,142.93,142.8,21.2337]
[1642425913156,10.17,142.92,142.81,22.6432]
[1642425913854,24.99519979,142.91,142.81,22.6432]
[1642425914054,74.30216268,142.91,142.81,22.6432]
[1642425914656,10.17,142.9,142.81,22.6432]
[1642425915657,11.90904425,142.9,142.81,22.6432]
[1642425915857,82.19904425,142.9,142.78,70.29]
[1642425916060,39.77464848,142.88,142.79,23.0595]
[1642425916259,10.17,142.87,142.79,23.0595]
[1642425916857,0.09429979,142.86,142.79,23.0595]
[1642425919989,0.09429979,142.87,142.79,23.0595]
[1642425924097,1.12174194,142.85,142.76,22.8202]
[1642425924298,1.12174194,142.85,142.76,28.8202]
[1642425924499,0.09429979,142.84,142.76,6.0]
[1642425924900,48.49279511,142.84,142.75,30.7792]
[1642425925101,48.49279511,142.84,142.75,24.7792]
[1642425925503,10.5062,142.83,142.75,24.7792]
[1642425925698,22.7544,142.83,142.76,21.22862458]
[1642425925898,48.49279511,142.84,142.76,21.22862458]
[1642425926100,48.49279511,142.84,142.77,22.9879]
[1642425926398,0.09429979,142.84,142.77,22.9879]
[1642425926798,0.09429979,142.84,142.78,0.25]
[1642425927199,0.09429979,142.84,142.77,22.9879]
[1642425928301,46.85777231,142.84,142.77,22.9879]
[1642425928901,46.85777231,142.84,142.78,0.25]
[1642425929101,0.09429979,142.84,142.78,0.25]
[1642425929702,0.09429979,142.84,142.78,5.7]
[1642425929904,0.09429979,142.86,142.78,11.7]
[1642425930202,0.09429979,142.86,142.8,70.29]
[1642425930406,0.09429979,142.86,142.82,39.48332382]
[1642425930605,0.09429979,142.86,142.82,46.38832382]
[1642425930804,0.09429979,142.86,142.83,0.25]
[1642425931003,0.09429979,142.86,142.84,3.12389997]
[1642425932309,0.09429979,142.86,142.85,88.846]
[1642425932913,0.09429979,142.92,142.85,88.846]
[1642425933108,47.82545586,142.92,142.85,88.846]
[1642425935107,47.82545586,142.92,142.85,22.846]
[1642425943234,1.98707272,142.91,142.85,22.846]
[1642425944034,0.09429979,142.9,142.85,22.846]
[1642425946240,0.09429979,142.9,142.81,24.2172]
[1642425946441,1.83334404,142.9,142.82,22.7727]
[1642425946641,1.83334404,142.9,142.78,81.41891126]
[1642425946842,1.83334404,142.9,142.79,23.2489]
[1642425947141,57.24702779,142.89,142.79,23.2489]
[1642425947342,79.78072779,142.89,142.79,29.2489]
[1642425947541,0.09429979,142.88,142.79,29.2489]
[1642425947741,0.09429979,142.88,142.79,23.2489]
[1642425948647,0.09429979,142.88,142.8,12.94532201]
[1642425949046,0.09429979,142.88,142.81,0.25]
[1642425949246,0.09429979,142.88,142.81,24.078]
[1642425949651,0.09429979,142.88,142.81,30.078]
[1642425949848,0.09429979,142.88,142.81,30.338]
[1642425952653,0.09429979,142.88,142.81,40.8367]
[1642425958186,0.09429979,142.88,142.81,111.1267]
[1642425958380,44.13748822,142.9,142.81,111.1267]
[1642425958783,46.12456094,142.9,142.81,111.1267]
[1642425959983,46.12456094,142.9,142.81,40.3267]
[1642425960184,46.12456094,142.9,142.81,23.828]
[1642425960384,58.03360519,142.9,142.81,23.828]
[1642425961095,58.03360519,142.9,142.81,58.94144157]
[1642425961096,1.98707272,142.89,142.81,58.94144157]
[1642425961488,0.09429979,142.88,142.81,58.94144157]
[1642425961889,0.09429979,142.88,142.82,0.25]
[1642425963089,2.08137251,142.88,142.81,58.94144157]
[1642425963290,2.08137251,142.88,142.81,23.828]
[1642425964293,36.71340952,142.87,142.81,23.828]
[1642425964891,0.09429979,142.86,142.81,23.828]
[1642425965293,0.09429979,142.86,142.78,1.96791126]
[1642425965492,22.79449979,142.86,142.78,1.96791126]
[1642425966095,22.79449979,142.86,142.79,0.25]
[1642425966294,22.79449979,142.86,142.78,0.25]
[1642425966594,22.79449979,142.86,142.77,24.91571126]
[1642425966993,24.53354404,142.86,142.77,1.96791126]
[1642425967194,10.17,142.85,142.77,1.96791126]
[1642425967393,41.68715694,142.84,142.77,1.96791126]
[1642425967594,76.83965694,142.84,142.77,1.96791126]
[1642425967795,76.83965694,142.84,142.75,1.96791126]
[1642425967994,0.09429979,142.83,142.75,1.96791126]
[1642425968997,0.09429979,142.83,142.74,33.9362]
[1642425969195,0.09429979,142.83,142.75,0.25]
[1642425970298,0.09429979,142.83,142.75,81.0433]
[1642425970498,0.09429979,142.83,142.76,23.3333]
[1642425970897,0.09429979,142.83,142.77,0.25]
[1642425971398,0.09429979,142.83,142.77,17.67555078]
[1642425971698,0.09429979,142.84,142.77,28.17725078]
[1642425972301,0.09429979,142.84,142.78,24.1267]
[1642425972703,0.09429979,142.84,142.79,0.25]
[1642425975103,0.09429979,142.85,142.79,0.25]
[1642425977307,10.26429979,142.85,142.79,0.25]
[1642425978910,10.26429979,142.85,142.78,24.1267]
[1642425982937,10.26429979,142.85,142.79,0.25]
[1642425983640,0.09429979,142.85,142.79,0.25]
[1642425984338,0.09429979,142.85,142.79,14.87239235]
[1642425984637,0.09429979,142.85,142.79,0.25]
[1642425985538,10.26429979,142.85,142.79,0.25]
[1642425985941,0.09429979,142.85,142.79,6.385]
[1642425986139,0.09429979,142.85,142.8,24.7674]
[1642425986341,0.09429979,142.85,142.81,0.25]
[1642425986544,0.09429979,142.86,142.81,0.25]
[1642425986742,0.09429979,142.86,142.81,14.28960718]
[1642425986943,0.09429979,142.86,142.82,23.7863]
[1642425987745,0.09429979,142.86,142.83,0.25]
[1642425988543,0.09429979,142.86,142.84,3.12389997]
[1642425988845,0.09429979,142.86,142.84,9.12389997]
[1642425989442,0.09429979,142.86,142.84,3.12389997]
[1642425989946,0.09429979,142.9,142.84,3.12389997]
[1642425991948,18.31429979,142.9,142.84,3.12389997]
[1642425996556,20.30137251,142.9,142.84,3.12389997]
[1642425997357,20.30137251,142.9,142.82,23.7863]
[1642425997556,44.39797251,142.9,142.82,23.7863]
[1642425998459,54.39927251,142.9,142.82,23.7863]
[1642425999659,10.17,142.89,142.82,23.7863]
[1642425999858,42.67900225,142.88,142.82,23.7863]
[1642426001610,42.67900225,142.88,142.8,23.2699]
[1642426001760,42.67900225,142.88,142.77,1.96791126]
[1642426001962,24.2325,142.87,142.78,0.25]
[1642426002160,10.17,142.86,142.78,0.25]
[1642426002361,45.7291551,142.85,142.78,0.25]
[1642426002763,45.7291551,142.85,142.76,24.70921126]
[1642426002962,69.9940551,142.85,142.76,24.70921126]
[1642426003361,69.9940551,142.85,142.76,22.7413]
[1642426003763,69.9940551,142.85,142.76,28.7413]
[1642426004162,69.9940551,142.85,142.77,0.25]
[1642426004564,80.4989551,142.85,142.77,0.25]
[1642426008576,80.4989551,142.85,142.76,6.0]
[1642426008771,89.27199935,142.85,142.74,1.96791126]
[1642426008970,89.27199935,142.85,142.73,1.96791126]
[1642426008971,10.5075,142.82,142.73,1.96791126]
[1642426009196,18.2385,142.82,142.73,1.96791126]
[1642426009394,47.45224574,142.81,142.73,1.96791126]
[1642426009796,70.14454574,142.81,142.73,1.96791126]
[1642426010096,70.14454574,142.81,142.72,24.5529]
[1642426010297,70.14454574,142.81,142.72,30.5529]
[1642426012000,70.14454574,142.81,142.72,24.5529]
[1642426012200,80.31454574,142.81,142.72,24.5529]
[1642426012605,90.82244574,142.81,142.72,24.5529]
[1642426016503,90.82244574,142.81,142.72,94.8429]
[1642426016504,10.17,142.81,142.72,94.8429]
[1642426016704,1.55838217,142.82,142.73,0.25]
[1642426016905,1.55838217,142.82,142.73,10.42]
[1642426017305,1.55838217,142.82,142.73,16.68]
[1642426017505,49.43547849,142.83,142.74,130.59020761]
[1642426017807,22.5576,142.86,142.75,10.42]
[1642426018006,22.5576,142.86,142.76,24.9871]
[1642426018204,22.5576,142.86,142.76,35.1571]
[1642426018404,22.5576,142.86,142.77,70.54]
[1642426018604,1.98707272,142.87,142.79,70.29]
[1642426018807,1.98707272,142.87,142.8,22.8281]
[1642426019004,39.30377047,142.88,142.8,22.8281]
[1642426019204,39.30377047,142.88,142.8,29.0881]
[1642426019608,39.30377047,142.88,142.8,28.8281]
[1642426019806,39.30377047,142.88,142.8,22.8281]
[1642426020408,39.30377047,142.88,142.81,37.38880761]
[1642426020607,39.30377047,142.88,142.8,22.8281]
[1642426020808,39.30377047,142.88,142.8,28.8281]
[1642426021007,39.30377047,142.88,142.8,28.5781]
[1642426022613,39.30377047,142.88,142.8,6.0]
[1642426022812,49.47377047,142.88,142.77,35.0923]
[1642426023112,23.9912,142.87,142.78,24.2433]
[1642426024014,47.58699756,142.85,142.78,24.2433]
[1642426024610,1.73904425,142.84,142.78,23.9933]
[1642426024810,11.90904425,142.84,142.78,23.9933]
[1642426025111,10.17,142.84,142.78,23.9933]
[1642426025316,11.90904425,142.84,142.78,23.9933]
[1642426025513,10.17,142.84,142.78,23.9933]
[1642426025813,11.90904425,142.84,142.78,23.9933]
[1642426026014,10.17,142.84,142.78,23.9933]
[1642426026214,10.17,142.84,142.73,46.03810213]
[1642426026517,10.17,142.84,142.74,24.9273]
[1642426026518,23.4479,142.83,142.74,24.9273]
[1642426027015,25.18694425,142.83,142.74,24.9273]
[1642426027618,23.4479,142.83,142.74,24.9273]
[1642426029721,23.4479,142.83,142.74,35.4311]
[1642426030819,23.4479,142.83,142.74,24.9273]
[1642426031719,25.18694425,142.83,142.74,24.9273]
[1642426032421,45.86334425,142.83,142.74,24.9273]
[1642426032625,45.86334425,142.83,142.74,24.6773]
[1642426033321,1.50427806,142.81,142.74,24.6773]
[1642426033523,81.96427806,142.81,142.71,24.0616]
[1642426033721,10.5095,142.79,142.71,24.0616]
[1642426034129,20.6795,142.79,142.71,24.0616]
[1642426034322,20.6795,142.79,142.7,1.96791126]
[1642426034521,36.03354662,142.78,142.7,7.96791126]
[1642426034722,36.03354662,142.78,142.7,1.96791126]
[1642426034922,36.03354662,142.78,142.7,6.0]
[1642426035123,59.13014662,142.78,142.7,6.0]
[1642426035822,59.13014662,142.78,142.68,31.65051126]
[1642426036024,59.13014662,142.78,142.69,0.25]
[1642426042737,69.64034662,142.78,142.68,29.6826]
[1642426043159,69.64034662,142.78,142.68,23.6826]
[1642426043362,1.73904425,142.77,142.68,23.6826]
[1642426043563,11.90904425,142.77,142.68,23.6826]
[1642426044060,22.42014425,142.77,142.68,23.6826]
[1642426045661,20.6811,142.77,142.68,23.6826]
[1642426051167,22.00070748,142.77,142.68,23.6826]
[1642426060580,23.73975173,142.77,142.64,1.96791126]
[1642426060781,23.8468,142.76,142.64,32.52461126]
[1642426060982,10.5142,142.73,142.64,26.52461126]
[1642426061182,10.5142,142.73,142.64,32.52461126]
[1642426061183,38.06507681,142.72,142.64,32.52461126]
[1642426061385,38.06507681,142.72,142.64,1.96791126]
[1642426061609,10.17,142.71,142.64,1.96791126]
[1642426062312,80.46,142.71,142.64,1.96791126]
[1642426062707,10.17,142.71,142.64,1.96791126]
[1642426062908,10.17,142.71,142.61,50.09404639]
[1642426063109,33.3708,142.71,142.61,56.09404639]
[1642426063509,43.8861,142.71,142.61,56.09404639]
[1642426063911,43.8861,142.71,142.61,55.59404639]
[1642426064312,43.8861,142.71,142.62,22.5438]
[1642426066115,43.8861,142.71,142.63,0.25]
[1642426066916,43.8861,142.71,142.62,22.5438]
[1642426067419,79.9221472,142.71,142.62,22.5438]
[1642426068017,79.9221472,142.71,142.61,1.96791126]
[1642426068219,79.9221472,142.71,142.6,26.91511126]
[1642426068418,81.66119145,142.71,142.6,26.91511126]
[1642426068819,81.66119145,142.71,142.6,64.79184096]
[1642426069422,79.9221472,142.71,142.6,64.79184096]
[1642426069821,79.9221472,142.71,142.6,62.8239297]
[1642426070023,150.2121472,142.71,142.6,62.8239297]
[1642426070421,79.9221472,142.71,142.6,62.8239297]
[1642426074029,79.9221472,142.71,142.6,59.4928887]
[1642426077434,79.9221472,142.71,142.6,65.4928887]
[1642426077636,81.66119145,142.71,142.6,65.4928887]
[1642426078336,81.66119145,142.71,142.6,76.0079887]
[1642426078937,81.66119145,142.71,142.6,76.2679887]
[1642426079436,33.3708,142.71,142.61,70.29]
[1642426079637,1.98707272,142.73,142.64,10.5119]
[1642426079841,1.98707272,142.73,142.64,25.3779]
[1642426080240,1.98707272,142.74,142.65,0.25]
[1642426080467,1.98707272,142.74,142.65,89.57182487]
[1642426080665,1.98707272,142.74,142.65,99.74182487]
[1642426080862,1.98707272,142.74,142.65,106.00182487]
[1642426081464,45.76167506,142.76,142.65,35.71182487]
[1642426081666,45.76167506,142.76,142.65,45.96282487]
[1642426081863,47.50071931,142.76,142.65,45.96282487]
[1642426082065,47.50071931,142.76,142.65,45.71282487]
[1642426082264,11.90904425,142.75,142.65,25.03182487]
[1642426083568,10.5138,142.73,142.65,6.0]
[1642426083766,10.5138,142.73,142.63,16.5127]
[1642426084165,10.5138,142.73,142.63,10.5127]
[1642426084567,50.10975975,142.72,142.62,51.85591908]
[1642426084767,50.10975975,142.72,142.62,41.68591908]
[1642426084968,60.27975975,142.72,142.62,41.68591908]
[1642426085369,62.018804,142.72,142.62,41.68591908]
[1642426085572,62.018804,142.72,142.62,47.68591908]
[1642426088275,62.018804,142.72,142.62,6.0]
[1642426088574,62.018804,142.72,142.61,16.5142]
[1642426089172,23.8398,142.71,142.61,6.0]
[1642426089374,38.57692668,142.68,142.59,24.66101126]
[1642426089572,48.74692668,142.68,142.59,24.66101126]
[1642426090574,48.74692668,142.68,142.59,38.40795123]
[1642426090779,48.74692668,142.68,142.59,36.44003997]
[1642426091476,48.74692668,142.68,142.59,22.6931]
[1642426091678,59.26432668,142.68,142.59,22.6931]
[1642426093580,59.26432668,142.68,142.58,1.96791126]
[1642426093780,23.2574,142.67,142.57,23.2395]
[1642426093981,10.5196,142.65,142.57,23.2395]
[1642426094381,33.4274,142.67,142.57,23.2395]
[1642426095585,43.9458,142.67,142.57,23.2395]
[1642426098189,20.6884,142.67,142.58,11.06393902]
[1642426098390,10.17,142.67,142.58,11.06393902]
[1642426098592,10.17,142.67,142.59,24.3509]
[1642426102317,33.4938,142.67,142.59,24.3509]
[1642426103518,44.0123,142.67,142.59,24.3509]
[1642426109626,45.75134425,142.67,142.59,24.3509]
[1642426110227,44.0123,142.67,142.59,24.3509]
[1642426110427,23.3238,142.67,142.59,24.3509]
[1642426110828,40.5639994,142.68,142.59,24.3509]
[1642426111229,38.57692668,142.68,142.59,24.3509]
[1642426111628,49.09442668,142.68,142.59,24.3509]
[1642426112430,49.09442668,142.68,142.59,30.3509]
[1642426112630,49.09442668,142.68,142.59,24.3509]
[1642426116832,38.57692668,142.68,142.59,34.8672]
[1642426117335,38.57692668,142.68,142.6,0.25]
[1642426117634,38.57692668,142.68,142.59,34.8672]
[1642426117868,38.57692668,142.68,142.6,0.25]
[1642426119036,49.09442668,142.68,142.6,0.25]
[1642426119636,49.09442668,142.68,142.59,24.3509]